[Event "Titled Tuesday Blitz December 06 Early 2022"]
[White "Arbunic Castro, Giovanna"]
[Black "Iskusnyh, Sergei"]
[WhiteFideId "3400549"]
[BlackFideId "4120027"]
[WhiteElo "1922"]
[BlackElo "2492"]
[Result "0-1"]
[Round "01"]
[TimeControl "180+1"]
[Date "2022.12.07"]
[WhiteClock "0:01:06"]
[BlackClock "0:01:32"]

1. e4 {[%clk 0:02:56]}  e6 {[%clk 0:02:48]} 2. d4 {[%clk 0:02:54]}  d5 {[%clk 0:02:34]} 3. exd5 {[%clk 0:02:52]}  exd5 {[%clk 0:02:29]} 4. Nf3 {[%clk 0:02:52]}  Nf6 {[%clk 0:02:23]} 5. c4 {[%clk 0:02:50]}  Bb4+ {[%clk 0:02:10]} 6. Nc3 {[%clk 0:02:47]}  O-O {[%clk 0:02:08]} 7. Be2 {[%clk 0:02:45]}  dxc4 {[%clk 0:02:03]} 8. O-O {[%clk 0:02:44]}  Bg4 {[%clk 0:01:55]} 9. h3 {[%clk 0:02:41]}  Bh5 {[%clk 0:01:54]} 10. g4 {[%clk 0:02:39]}  Bg6 {[%clk 0:01:53]} 11. Bxc4 {[%clk 0:02:39]}  Nc6 {[%clk 0:01:52]} 12. Be3 {[%clk 0:02:36]}  a6 {[%clk 0:01:49]} 13. Ne5 {[%clk 0:02:34]}  Nxe5 {[%clk 0:01:45]} 14. dxe5 {[%clk 0:02:33]}  Ne4 {[%clk 0:01:45]} 15. f4 {[%clk 0:02:28]}  Nxc3 {[%clk 0:01:40]} 16. bxc3 {[%clk 0:02:22]}  Bxc3 {[%clk 0:01:40]} 17. f5 {[%clk 0:02:21]}  Bxa1 {[%clk 0:01:39]} 18. Qxa1 {[%clk 0:02:18]}  b5 {[%clk 0:01:38]} 19. Bb3 {[%clk 0:02:14]}  Qd3 {[%clk 0:01:37]} 20. Qe1 {[%clk 0:02:06]}  Rae8 {[%clk 0:01:34]} 21. Bc5 {[%clk 0:01:46]}  Qxh3 {[%clk 0:01:33]} 22. fxg6 {[%clk 0:01:43]}  Qxg4+ {[%clk 0:01:33]} 23. Kh1 {[%clk 0:01:38]}  Qh5+ {[%clk 0:01:33]} 24. Kg2 {[%clk 0:01:36]}  Qxg6+ {[%clk 0:01:33]} 25. Kh1 {[%clk 0:01:34]}  Qh5+ {[%clk 0:01:33]} 26. Kg2 {[%clk 0:01:32]}  Rxe5 {[%clk 0:01:33]} 27. Qxe5 {[%clk 0:01:13]}  Qxe5 {[%clk 0:01:32]} 28. Bxf8 {[%clk 0:01:12]}  Qg5+ {[%clk 0:01:32]} 29. Kh3 {[%clk 0:01:07]}  Qh5+ {[%clk 0:01:32]} 30. Kg3 {[%clk 0:01:06]}  Kxf8 {[%clk 0:01:32]} 0-1


[Site "https://www.chess.com"]

[Event "Titled Tuesday Blitz December 06 Early 2022"]
[White "Artemenko, Oleg"]
[Black "Mohammed, Dilshad"]
[WhiteFideId "14201798"]
[BlackFideId "5050421"]
[WhiteElo "2287"]
[BlackElo "2102"]
[Result "1-0"]
[Round "01"]
[TimeControl "180+1"]
[Date "2022.12.07"]
[WhiteClock "0:00:12"]
[BlackClock "0:00:02"]

1. d4 {[%clk 0:02:54]}  Nf6 {[%clk 0:02:59]} 2. Nc3 {[%clk 0:02:48]}  c5 {[%clk 0:02:57]} 3. dxc5 {[%clk 0:02:43]}  g6 {[%clk 0:02:53]} 4. e4 {[%clk 0:02:16]}  Nc6 {[%clk 0:02:52]} 5. Nf3 {[%clk 0:02:14]}  Bg7 {[%clk 0:02:42]} 6. Bd3 {[%clk 0:02:06]}  O-O {[%clk 0:02:40]} 7. O-O {[%clk 0:02:02]}  Qa5 {[%clk 0:02:12]} 8. Qe1 {[%clk 0:01:38]}  Qxc5 {[%clk 0:02:09]} 9. Be3 {[%clk 0:01:39]}  Qb4 {[%clk 0:01:58]} 10. a3 {[%clk 0:01:37]}  Qa5 {[%clk 0:01:51]} 11. h3 {[%clk 0:01:31]}  d6 {[%clk 0:01:50]} 12. Rd1 {[%clk 0:01:30]}  a6 {[%clk 0:01:42]} 13. Bd2 {[%clk 0:01:27]}  Qc7 {[%clk 0:01:36]} 14. Ne2 {[%clk 0:01:21]}  d5 {[%clk 0:01:31]} 15. exd5 {[%clk 0:01:18]}  Nxd5 {[%clk 0:01:32]} 16. c4 {[%clk 0:01:18]}  Nf6 {[%clk 0:01:30]} 17. Bc3 {[%clk 0:01:17]}  e5 {[%clk 0:01:29]} 18. Ng3 {[%clk 0:01:16]}  Re8 {[%clk 0:01:27]} 19. Ne4 {[%clk 0:01:05]}  Nh5 {[%clk 0:01:20]} 20. c5 {[%clk 0:01:04]}  Nf4 {[%clk 0:01:18]} 21. Bc4 {[%clk 0:01:02]}  Be6 {[%clk 0:01:15]} 22. Bxe6 {[%clk 0:01:01]}  Rxe6 {[%clk 0:01:16]} 23. Nfg5 {[%clk 0:01:01]}  Re7 {[%clk 0:01:12]} 24. Nd6 {[%clk 0:01:01]}  h6 {[%clk 0:01:03]} 25. Nge4 {[%clk 0:00:57]}  Nd4 {[%clk 0:01:03]} 26. Bxd4 {[%clk 0:00:49]}  exd4 {[%clk 0:01:04]} 27. Qd2 {[%clk 0:00:50]}  g5 {[%clk 0:01:03]} 28. Rfe1 {[%clk 0:00:46]}  d3 {[%clk 0:00:59]} 29. Nf5 {[%clk 0:00:42]}  Rd7 {[%clk 0:00:54]} 30. Nfd6 {[%clk 0:00:25]}  Bd4 {[%clk 0:00:45]} 31. Re3 {[%clk 0:00:20]}  Re7 {[%clk 0:00:41]} 32. Nf5 {[%clk 0:00:18]}  Bxe3 {[%clk 0:00:35]} 33. Qxe3 {[%clk 0:00:19]}  Re6 {[%clk 0:00:31]} 34. g3 {[%clk 0:00:19]}  Ng6 {[%clk 0:00:20]} 35. Rxd3 {[%clk 0:00:18]}  Ne5 {[%clk 0:00:19]} 36. Rd4 {[%clk 0:00:18]}  Rae8 {[%clk 0:00:19]} 37. Nfd6 {[%clk 0:00:18]}  R8e7 {[%clk 0:00:18]} 38. Qe2 {[%clk 0:00:18]}  Qc6 {[%clk 0:00:17]} 39. Qh5 {[%clk 0:00:18]}  b6 {[%clk 0:00:14]} 40. Nf5 {[%clk 0:00:18]}  Rd7 {[%clk 0:00:08]} 41. Rxd7 {[%clk 0:00:17]}  Nxd7 {[%clk 0:00:08]} 42. f3 {[%clk 0:00:15]}  bxc5 {[%clk 0:00:07]} 43. Nxg5 {[%clk 0:00:12]}  hxg5 {[%clk 0:00:07]} 44. Qxg5+ {[%clk 0:00:13]}  Kf8 {[%clk 0:00:06]} 45. Qd8+ {[%clk 0:00:12]}  Re8 {[%clk 0:00:07]} 46. Qh4 {[%clk 0:00:12]}  Re1+ {[%clk 0:00:06]} 47. Kf2 {[%clk 0:00:12]}  Ne5 {[%clk 0:00:02]} 48. Qh8# {[%clk 0:00:12]} 1-0


[Site "https://www.chess.com"]

[Event "Titled Tuesday Blitz December 06 Early 2022"]
[White "Bilan, Danila"]
[Black "Kollars, Dmitrij"]
[WhiteFideId "24161918"]
[BlackFideId "12909572"]
[WhiteElo "2182"]
[BlackElo "2584"]
[Result "0-1"]
[Round "01"]
[TimeControl "180+1"]
[Date "2022.12.06"]
[WhiteClock "0:00:03"]
[BlackClock "0:01:26"]

1. d4 {[%clk 0:00:56]}  Nf6 {[%clk 0:02:57]} 2. Nf3 {[%clk 0:00:57]}  d5 {[%clk 0:02:56]} 3. c4 {[%clk 0:00:57]}  e6 {[%clk 0:02:57]} 4. Nc3 {[%clk 0:00:57]}  h6 {[%clk 0:02:54]} 5. Bf4 {[%clk 0:00:57]}  Bd6 {[%clk 0:02:54]} 6. Bg3 {[%clk 0:00:57]}  O-O {[%clk 0:02:53]} 7. e3 {[%clk 0:00:57]}  b6 {[%clk 0:02:52]} 8. cxd5 {[%clk 0:00:56]}  exd5 {[%clk 0:02:53]} 9. Ne5 {[%clk 0:00:56]}  c5 {[%clk 0:02:52]} 10. Bd3 {[%clk 0:00:53]}  Bb7 {[%clk 0:02:50]} 11. O-O {[%clk 0:00:53]}  Re8 {[%clk 0:02:48]} 12. f4 {[%clk 0:00:41]}  Nc6 {[%clk 0:02:43]} 13. Bb5 {[%clk 0:00:40]}  Qc7 {[%clk 0:02:18]} 14. Bh4 {[%clk 0:00:33]}  cxd4 {[%clk 0:02:11]} 15. exd4 {[%clk 0:00:22]}  Nxd4 {[%clk 0:02:06]} 16. Bxe8 {[%clk 0:00:13]}  Nxe8 {[%clk 0:02:07]} 17. Kh1 {[%clk 0:00:08]}  Nf5 {[%clk 0:02:03]} 18. Bf2 {[%clk 0:00:07]}  Bxe5 {[%clk 0:01:54]} 19. fxe5 {[%clk 0:00:07]}  Qxe5 {[%clk 0:01:55]} 20. Re1 {[%clk 0:00:07]}  Qd6 {[%clk 0:01:52]} 21. Nb5 {[%clk 0:00:07]}  Qd7 {[%clk 0:01:50]} 22. Nd4 {[%clk 0:00:07]}  Ned6 {[%clk 0:01:50]} 23. Nxf5 {[%clk 0:00:06]}  Qxf5 {[%clk 0:01:51]} 24. Bd4 {[%clk 0:00:06]}  Ne4 {[%clk 0:01:51]} 25. Qf3 {[%clk 0:00:06]}  Qe6 {[%clk 0:01:36]} 26. Rac1 {[%clk 0:00:06]}  Re8 {[%clk 0:01:36]} 27. Rc7 {[%clk 0:00:06]}  Nf2+ {[%clk 0:01:26]} 28. Qxf2 {[%clk 0:00:03]}  Qxe1+ {[%clk 0:01:27]} 29. Qxe1 {[%clk 0:00:03]}  Rxe1+ {[%clk 0:01:28]} 30. Bg1 {[%clk 0:00:04]}  Ba6 {[%clk 0:01:26]} 31. Rxa7 {[%clk 0:00:04]}  Bd3 {[%clk 0:01:27]} 32. Rd7 {[%clk 0:00:04]}  Be4 {[%clk 0:01:27]} 33. h3 {[%clk 0:00:03]}  Re2 {[%clk 0:01:27]} 34. Bxb6 {[%clk 0:00:03]}  Rxg2 {[%clk 0:01:27]} 35. Re7 {[%clk 0:00:03]}  Rxb2+ {[%clk 0:01:26]} 0-1


[Site "https://www.chess.com"]

[Event "Titled Tuesday Blitz December 06 Early 2022"]
[White "Buksa, Nataliya"]
[Black "Alex_Sahakyan2006"]
[WhiteFideId "14123622"]
[WhiteElo "2303"]
[BlackElo "2300"]
[Result "1-0"]
[Round "01"]
[TimeControl "180+1"]
[Date "2022.12.07"]
[WhiteClock "0:00:06"]
[BlackClock "0:00:13"]

1. d4 {[%clk 0:02:47]}  Nf6 {[%clk 0:02:41]} 2. Nc3 {[%clk 0:02:41]}  g6 {[%clk 0:02:17]} 3. e4 {[%clk 0:02:39]}  Bg7 {[%clk 0:02:13]} 4. Bg5 {[%clk 0:02:35]}  O-O {[%clk 0:01:48]} 5. e5 {[%clk 0:02:30]}  Ne8 {[%clk 0:01:47]} 6. f4 {[%clk 0:02:29]}  c5 {[%clk 0:01:47]} 7. Nf3 {[%clk 0:02:29]}  cxd4 {[%clk 0:01:47]} 8. Nxd4 {[%clk 0:02:30]}  d6 {[%clk 0:01:47]} 9. exd6 {[%clk 0:02:24]}  Qxd6 {[%clk 0:01:46]} 10. Nf3 {[%clk 0:02:24]}  Nc6 {[%clk 0:01:44]} 11. Qxd6 {[%clk 0:02:23]}  Nxd6 {[%clk 0:01:45]} 12. O-O-O {[%clk 0:02:23]}  Bf5 {[%clk 0:01:45]} 13. Ne5 {[%clk 0:02:22]}  Rfe8 {[%clk 0:01:21]} 14. Bd3 {[%clk 0:02:09]}  Nxe5 {[%clk 0:01:17]} 15. Bxf5 {[%clk 0:02:06]}  Nxf5 {[%clk 0:01:17]} 16. fxe5 {[%clk 0:02:05]}  Bxe5 {[%clk 0:01:18]} 17. Rhe1 {[%clk 0:02:04]}  Bxh2 {[%clk 0:01:14]} 18. Nd5 {[%clk 0:02:03]}  Bd6 {[%clk 0:01:09]} 19. g4 {[%clk 0:01:58]}  Ng7 {[%clk 0:00:58]} 20. Nxe7+ {[%clk 0:01:49]}  Bxe7 {[%clk 0:00:55]} 21. Bxe7 {[%clk 0:01:49]}  Rac8 {[%clk 0:00:46]} 22. c3 {[%clk 0:01:46]}  Ne6 {[%clk 0:00:44]} 23. Bf6 {[%clk 0:01:44]}  Rc4 {[%clk 0:00:39]} 24. g5 {[%clk 0:01:43]}  Rec8 {[%clk 0:00:35]} 25. Rd7 {[%clk 0:01:39]}  R4c7 {[%clk 0:00:33]} 26. Rd6 {[%clk 0:01:34]}  Rc5 {[%clk 0:00:27]} 27. Rd7 {[%clk 0:01:24]}  Nxg5 {[%clk 0:00:26]} 28. Rxb7 {[%clk 0:01:20]}  Rf5 {[%clk 0:00:20]} 29. Bd4 {[%clk 0:01:10]}  Nf3 {[%clk 0:00:16]} 30. Re4 {[%clk 0:01:09]}  Nxd4 {[%clk 0:00:14]} 31. Rxd4 {[%clk 0:01:10]}  a5 {[%clk 0:00:15]} 32. a4 {[%clk 0:01:08]}  h5 {[%clk 0:00:14]} 33. Kc2 {[%clk 0:01:08]}  Re8 {[%clk 0:00:13]} 34. Rb5 {[%clk 0:01:05]}  Ree5 {[%clk 0:00:12]} 35. Rxe5 {[%clk 0:01:03]}  Rxe5 {[%clk 0:00:13]} 36. b4 {[%clk 0:01:04]}  g5 {[%clk 0:00:13]} 37. b5 {[%clk 0:01:03]}  Kg7 {[%clk 0:00:11]} 38. c4 {[%clk 0:01:00]}  h4 {[%clk 0:00:12]} 39. b6 {[%clk 0:00:53]}  h3 {[%clk 0:00:12]} 40. b7 {[%clk 0:00:45]}  Re8 {[%clk 0:00:11]} 41. c5 {[%clk 0:00:46]}  h2 {[%clk 0:00:11]} 42. Rd1 {[%clk 0:00:46]}  g4 {[%clk 0:00:11]} 43. c6 {[%clk 0:00:45]}  g3 {[%clk 0:00:11]} 44. c7 {[%clk 0:00:44]}  g2 {[%clk 0:00:12]} 45. c8=Q {[%clk 0:00:41]}  g1=Q {[%clk 0:00:10]} 46. Rxg1+ {[%clk 0:00:04]}  hxg1=Q {[%clk 0:00:05]} 47. Qxe8 {[%clk 0:00:05]}  Qg2+ {[%clk 0:00:06]} 48. Kc3 {[%clk 0:00:05]}  Qxb7 {[%clk 0:00:06]} 49. Qe5+ {[%clk 0:00:05]}  Kg6 {[%clk 0:00:05]} 50. Qxa5 {[%clk 0:00:06]}  Qf3+ {[%clk 0:00:06]} 51. Kc4 {[%clk 0:00:05]}  Qe4+ {[%clk 0:00:06]} 52. Kb3 {[%clk 0:00:04]}  Qb1+ {[%clk 0:00:07]} 53. Kc4 {[%clk 0:00:04]}  Qc2+ {[%clk 0:00:07]} 54. Kd4 {[%clk 0:00:03]}  Qf2+ {[%clk 0:00:08]} 55. Ke4 {[%clk 0:00:03]}  f5+ {[%clk 0:00:08]} 56. Kd3 {[%clk 0:00:03]}  Qf1+ {[%clk 0:00:08]} 57. Kc2 {[%clk 0:00:03]}  Qe2+ {[%clk 0:00:08]} 58. Kb3 {[%clk 0:00:01]}  Qd3+ {[%clk 0:00:08]} 59. Qc3 {[%clk 0:00:01]}  Qxc3+ {[%clk 0:00:08]} 60. Kxc3 {[%clk 0:00:01]}  f4 {[%clk 0:00:09]} 61. Kd3 {[%clk 0:00:02]}  Kf5 {[%clk 0:00:10]} 62. a5 {[%clk 0:00:02]}  f3 {[%clk 0:00:10]} 63. a6 {[%clk 0:00:02]}  f2 {[%clk 0:00:10]} 64. Ke2 {[%clk 0:00:02]}  Ke4 {[%clk 0:00:10]} 65. Kxf2 {[%clk 0:00:02]}  Kd5 {[%clk 0:00:10]} 66. a7 {[%clk 0:00:03]}  Kc5 {[%clk 0:00:11]} 67. a8=Q {[%clk 0:00:03]}  Kb6 {[%clk 0:00:12]} 68. Qe4 {[%clk 0:00:04]}  Ka5 {[%clk 0:00:12]} 69. Ke3 {[%clk 0:00:05]}  Kb6 {[%clk 0:00:13]} 70. Kd3 {[%clk 0:00:06]} 1-0


[Site "https://www.chess.com"]

[Event "Titled Tuesday Blitz December 06 Early 2022"]
[White "Chernov, Mikhail"]
[Black "Pakleza, Zbigniew"]
[WhiteFideId "24143170"]
[BlackFideId "1119290"]
[WhiteElo "2113"]
[BlackElo "2410"]
[Result "0-1"]
[Round "01"]
[TimeControl "180+1"]
[Date "2022.12.07"]
[WhiteClock "0:00:23"]
[BlackClock "0:01:22"]

1. e4 {[%clk 0:02:39]}  d6 {[%clk 0:02:49]} 2. d4 {[%clk 0:02:35]}  Nf6 {[%clk 0:02:33]} 3. Nc3 {[%clk 0:02:31]}  c6 {[%clk 0:02:17]} 4. f4 {[%clk 0:02:25]}  Qb6 {[%clk 0:02:13]} 5. e5 {[%clk 0:02:16]}  Nd5 {[%clk 0:02:12]} 6. Nxd5 {[%clk 0:02:15]}  cxd5 {[%clk 0:02:13]} 7. Nf3 {[%clk 0:02:14]}  Nc6 {[%clk 0:02:13]} 8. c3 {[%clk 0:02:09]}  Bf5 {[%clk 0:02:13]} 9. Be2 {[%clk 0:02:07]}  e6 {[%clk 0:02:13]} 10. O-O {[%clk 0:02:05]}  Be7 {[%clk 0:02:13]} 11. Kh1 {[%clk 0:02:05]}  h6 {[%clk 0:02:09]} 12. b4 {[%clk 0:01:51]}  Rc8 {[%clk 0:02:07]} 13. Bd2 {[%clk 0:01:42]}  O-O {[%clk 0:02:06]} 14. a4 {[%clk 0:01:37]}  a5 {[%clk 0:02:06]} 15. b5 {[%clk 0:01:38]}  Nb8 {[%clk 0:02:05]} 16. Qb3 {[%clk 0:01:31]}  Nd7 {[%clk 0:02:01]} 17. Rfc1 {[%clk 0:01:30]}  Be4 {[%clk 0:01:53]} 18. Be3 {[%clk 0:01:19]}  Bxf3 {[%clk 0:01:46]} 19. Bxf3 {[%clk 0:01:20]}  dxe5 {[%clk 0:01:46]} 20. fxe5 {[%clk 0:00:52]}  Nxe5 {[%clk 0:01:45]} 21. Bxh6 {[%clk 0:00:37]}  Nxf3 {[%clk 0:01:40]} 22. gxf3 {[%clk 0:00:37]}  gxh6 {[%clk 0:01:34]} 23. Rg1+ {[%clk 0:00:38]}  Kh8 {[%clk 0:01:28]} 24. Qb1 {[%clk 0:00:23]}  Rg8 {[%clk 0:01:22]} 0-1


[Site "https://www.chess.com"]

[Event "Titled Tuesday Blitz December 06 Early 2022"]
[White "Concio, Michael Jr."]
[Black "Bochnicka, Vladimir"]
[WhiteFideId "5217873"]
[BlackFideId "14943450"]
[WhiteElo "2263"]
[BlackElo "2239"]
[Result "0-1"]
[Round "01"]
[TimeControl "180+1"]
[Date "2022.12.07"]
[WhiteClock "0:00:08"]
[BlackClock "0:00:03"]

1. e4 {[%clk 0:02:40]}  c5 {[%clk 0:02:59]} 2. Nf3 {[%clk 0:01:28]}  Nc6 {[%clk 0:02:58]} 3. d4 {[%clk 0:01:27]}  cxd4 {[%clk 0:02:57]} 4. Nxd4 {[%clk 0:01:28]}  Nf6 {[%clk 0:02:58]} 5. Nc3 {[%clk 0:01:28]}  e5 {[%clk 0:02:58]} 6. Nb3 {[%clk 0:01:28]}  Bb4 {[%clk 0:02:57]} 7. Bd3 {[%clk 0:01:24]}  O-O {[%clk 0:02:56]} 8. O-O {[%clk 0:01:24]}  Bxc3 {[%clk 0:02:56]} 9. bxc3 {[%clk 0:01:24]}  d6 {[%clk 0:02:57]} 10. h3 {[%clk 0:01:17]}  Be6 {[%clk 0:02:57]} 11. Be3 {[%clk 0:01:17]}  h6 {[%clk 0:02:54]} 12. Qe2 {[%clk 0:01:11]}  Rc8 {[%clk 0:02:53]} 13. Rfd1 {[%clk 0:01:10]}  Qe7 {[%clk 0:02:23]} 14. f4 {[%clk 0:01:06]}  exf4 {[%clk 0:02:21]} 15. Bxf4 {[%clk 0:01:07]}  Rfd8 {[%clk 0:02:19]} 16. Nd4 {[%clk 0:01:04]}  Ne5 {[%clk 0:02:15]} 17. Qd2 {[%clk 0:01:02]}  Bc4 {[%clk 0:02:05]} 18. Nf5 {[%clk 0:00:57]}  Qf8 {[%clk 0:01:47]} 19. Rf1 {[%clk 0:00:43]}  Ng6 {[%clk 0:01:31]} 20. Bxc4 {[%clk 0:00:34]}  Rxc4 {[%clk 0:01:24]} 21. Nxh6+ {[%clk 0:00:23]}  gxh6 {[%clk 0:01:16]} 22. Bxh6 {[%clk 0:00:24]}  Nxe4 {[%clk 0:00:53]} 23. Qd3 {[%clk 0:00:23]}  Qxh6 {[%clk 0:00:53]} 24. Qxc4 {[%clk 0:00:21]}  Qe3+ {[%clk 0:00:53]} 25. Kh2 {[%clk 0:00:21]}  Qg3+ {[%clk 0:00:51]} 26. Kg1 {[%clk 0:00:20]}  Qe3+ {[%clk 0:00:44]} 27. Kh2 {[%clk 0:00:19]}  Ne5 {[%clk 0:00:42]} 28. Qd4 {[%clk 0:00:17]}  Qg3+ {[%clk 0:00:41]} 29. Kg1 {[%clk 0:00:17]}  Ng5 {[%clk 0:00:34]} 30. Kh1 {[%clk 0:00:13]}  Kg7 {[%clk 0:00:20]} 31. Rae1 {[%clk 0:00:11]}  Rh8 {[%clk 0:00:20]} 32. Re3 {[%clk 0:00:10]}  Qh4 {[%clk 0:00:18]} 33. Qxh4 {[%clk 0:00:10]}  Rxh4 {[%clk 0:00:19]} 34. Rf5 {[%clk 0:00:10]}  f6 {[%clk 0:00:18]} 35. Kg1 {[%clk 0:00:08]}  Ra4 {[%clk 0:00:18]} 36. Rf1 {[%clk 0:00:09]}  Rxa2 {[%clk 0:00:18]} 37. Rd1 {[%clk 0:00:09]}  Kg6 {[%clk 0:00:15]} 38. Rxd6 {[%clk 0:00:09]}  Nc4 {[%clk 0:00:15]} 39. Red3 {[%clk 0:00:06]}  Nxd6 {[%clk 0:00:15]} 40. Rxd6 {[%clk 0:00:07]}  Rxc2 {[%clk 0:00:16]} 41. Rd7 {[%clk 0:00:07]}  Rxc3 {[%clk 0:00:16]} 42. Rxb7 {[%clk 0:00:07]}  a5 {[%clk 0:00:16]} 43. Ra7 {[%clk 0:00:07]}  Rc5 {[%clk 0:00:16]} 44. h4 {[%clk 0:00:07]}  Ne4 {[%clk 0:00:17]} 45. g4 {[%clk 0:00:08]}  Nc3 {[%clk 0:00:11]} 46. Kg2 {[%clk 0:00:07]}  a4 {[%clk 0:00:11]} 47. Kg3 {[%clk 0:00:06]}  Rc4 {[%clk 0:00:11]} 48. h5+ {[%clk 0:00:06]}  Kh6 {[%clk 0:00:10]} 49. Ra5 {[%clk 0:00:07]}  Ne4+ {[%clk 0:00:07]} 50. Kf3 {[%clk 0:00:06]}  Nd2+ {[%clk 0:00:07]} 51. Kg3 {[%clk 0:00:06]}  Nb3 {[%clk 0:00:07]} 52. Ra6 {[%clk 0:00:06]}  Kg5 {[%clk 0:00:06]} 53. Ra8 {[%clk 0:00:06]}  Rc3+ {[%clk 0:00:06]} 54. Kf2 {[%clk 0:00:06]}  Nc5 {[%clk 0:00:06]} 55. Rg8+ {[%clk 0:00:05]}  Kf4 {[%clk 0:00:07]} 56. h6 {[%clk 0:00:06]}  Rc2+ {[%clk 0:00:06]} 57. Ke1 {[%clk 0:00:06]}  Ke3 {[%clk 0:00:06]} 58. Kd1 {[%clk 0:00:06]}  Rh2 {[%clk 0:00:06]} 59. Re8+ {[%clk 0:00:03]}  Kd3 {[%clk 0:00:07]} 60. Rd8+ {[%clk 0:00:04]}  Kc3 {[%clk 0:00:08]} 61. Rc8 {[%clk 0:00:05]}  Kd3 {[%clk 0:00:06]} 62. Rd8+ {[%clk 0:00:03]}  Kc4 {[%clk 0:00:06]} 63. Rh8 {[%clk 0:00:02]}  a3 {[%clk 0:00:06]} 64. h7 {[%clk 0:00:03]}  a2 {[%clk 0:00:06]} 65. Ra8 {[%clk 0:00:04]}  Rxh7 {[%clk 0:00:03]} 66. g5 {[%clk 0:00:04]}  a1=Q+ {[%clk 0:00:02]} 67. Rxa1 {[%clk 0:00:04]}  Rh1+ {[%clk 0:00:02]} 68. Ke2 {[%clk 0:00:05]}  Rxa1 {[%clk 0:00:03]} 69. gxf6 {[%clk 0:00:06]}  Ne6 {[%clk 0:00:02]} 70. Ke3 {[%clk 0:00:05]}  Ra7 {[%clk 0:00:02]} 71. Ke4 {[%clk 0:00:06]}  Rf7 {[%clk 0:00:02]} 72. Ke5 {[%clk 0:00:07]}  Nc7 {[%clk 0:00:02]} 73. Kf5 {[%clk 0:00:07]}  Kd5 {[%clk 0:00:02]} 74. Kg6 {[%clk 0:00:08]}  Ke6 {[%clk 0:00:03]} 0-1


[Site "https://www.chess.com"]

[Event "Titled Tuesday Blitz December 06 Early 2022"]
[White "Devaev, Alexander"]
[Black "Xu, Yi"]
[WhiteFideId "4169395"]
[BlackFideId "8605564"]
[WhiteElo "2225"]
[BlackElo "2471"]
[Result "0-1"]
[Round "01"]
[TimeControl "180+1"]
[Date "2022.12.07"]
[WhiteClock "0:01:03"]
[BlackClock "0:00:33"]

1. d4 {[%clk 0:02:42]}  Nf6 {[%clk 0:01:41]} 2. c4 {[%clk 0:02:35]}  e6 {[%clk 0:01:41]} 3. Nf3 {[%clk 0:02:35]}  d5 {[%clk 0:01:41]} 4. Nc3 {[%clk 0:02:36]}  Bb4 {[%clk 0:01:42]} 5. Bg5 {[%clk 0:02:33]}  h6 {[%clk 0:01:42]} 6. Bxf6 {[%clk 0:02:33]}  Qxf6 {[%clk 0:01:43]} 7. Qb3 {[%clk 0:02:33]}  c5 {[%clk 0:01:41]} 8. e3 {[%clk 0:02:27]}  O-O {[%clk 0:01:40]} 9. a3 {[%clk 0:02:26]}  Bxc3+ {[%clk 0:01:39]} 10. bxc3 {[%clk 0:02:27]}  dxc4 {[%clk 0:01:34]} 11. Bxc4 {[%clk 0:02:27]}  Nc6 {[%clk 0:01:33]} 12. O-O {[%clk 0:02:23]}  Na5 {[%clk 0:01:32]} 13. Qa2 {[%clk 0:02:24]}  Nxc4 {[%clk 0:01:32]} 14. Qxc4 {[%clk 0:02:25]}  cxd4 {[%clk 0:01:32]} 15. cxd4 {[%clk 0:02:13]}  b6 {[%clk 0:01:32]} 16. Qc7 {[%clk 0:02:04]}  Ba6 {[%clk 0:01:30]} 17. Rfc1 {[%clk 0:02:05]}  Rfc8 {[%clk 0:01:27]} 18. Qe5 {[%clk 0:02:05]}  Qe7 {[%clk 0:01:25]} 19. a4 {[%clk 0:02:01]}  Bb7 {[%clk 0:01:23]} 20. h3 {[%clk 0:02:00]}  Qb4 {[%clk 0:01:10]} 21. Rxc8+ {[%clk 0:01:37]}  Rxc8 {[%clk 0:01:10]} 22. a5 {[%clk 0:01:38]}  b5 {[%clk 0:01:04]} 23. a6 {[%clk 0:01:36]}  Bxf3 {[%clk 0:01:01]} 24. gxf3 {[%clk 0:01:36]}  Qb2 {[%clk 0:00:58]} 25. Ra5 {[%clk 0:01:26]}  b4 {[%clk 0:00:46]} 26. Rb5 {[%clk 0:01:23]}  b3 {[%clk 0:00:44]} 27. Rb8 {[%clk 0:01:15]}  Qc1+ {[%clk 0:00:44]} 28. Kg2 {[%clk 0:01:16]}  b2 {[%clk 0:00:39]} 29. Rxc8+ {[%clk 0:01:02]}  Qxc8 {[%clk 0:00:39]} 30. Qb5 {[%clk 0:01:03]}  Qc1 {[%clk 0:00:33]} 0-1


[Site "https://www.chess.com"]

[Event "Titled Tuesday Blitz December 06 Early 2022"]
[White "Dimitrov, Atanas"]
[Black "Matveeva, Olga"]
[WhiteFideId "2901315"]
[BlackFideId "24107018"]
[WhiteElo "2626"]
[BlackElo "2056"]
[Result "0-1"]
[Round "01"]
[TimeControl "180+1"]
[Date "2022.12.07"]
[WhiteClock "0:01:10"]
[BlackClock "0:01:16"]

1. Nf3 {[%clk 0:02:28]}  d5 {[%clk 0:02:52]} 2. e3 {[%clk 0:02:27]}  Nf6 {[%clk 0:02:49]} 3. c4 {[%clk 0:02:27]}  e6 {[%clk 0:02:45]} 4. Nc3 {[%clk 0:02:26]}  Be7 {[%clk 0:02:39]} 5. b3 {[%clk 0:02:27]}  O-O {[%clk 0:02:36]} 6. Bb2 {[%clk 0:02:27]}  c5 {[%clk 0:02:31]} 7. cxd5 {[%clk 0:02:27]}  Nxd5 {[%clk 0:02:29]} 8. Be2 {[%clk 0:02:25]}  Nc6 {[%clk 0:02:21]} 9. O-O {[%clk 0:02:24]}  b6 {[%clk 0:02:16]} 10. Rc1 {[%clk 0:02:23]}  Bb7 {[%clk 0:02:14]} 11. d3 {[%clk 0:02:20]}  Rc8 {[%clk 0:02:09]} 12. Qd2 {[%clk 0:02:18]}  Bf6 {[%clk 0:02:03]} 13. Rfd1 {[%clk 0:02:17]}  Nxc3 {[%clk 0:02:01]} 14. Bxc3 {[%clk 0:02:17]}  Bxc3 {[%clk 0:02:00]} 15. Rxc3 {[%clk 0:02:15]}  Qf6 {[%clk 0:01:58]} 16. a3 {[%clk 0:02:12]}  Rfd8 {[%clk 0:01:57]} 17. Qc2 {[%clk 0:02:07]}  h6 {[%clk 0:01:54]} 18. Nd2 {[%clk 0:02:05]}  Ne5 {[%clk 0:01:42]} 19. g3 {[%clk 0:01:43]}  Qg6 {[%clk 0:01:31]} 20. f4 {[%clk 0:01:31]}  Ng4 {[%clk 0:01:25]} 21. Nf1 {[%clk 0:01:29]}  h5 {[%clk 0:01:21]} 22. h3 {[%clk 0:01:19]}  Nxe3 {[%clk 0:01:18]} 23. Kf2 {[%clk 0:01:10]}  Nxc2 {[%clk 0:01:16]} 0-1


[Site "https://www.chess.com"]